[Event "Titled Tuesday Blitz January 18 2022"]
[White "Xiong, Jeffery"]
[Black "Oparin, Grigoriy"]
[WhiteFideId "2047640"]
[BlackFideId "24125890"]
[WhiteElo "2727"]
[BlackElo "2685"]
[Result "1-0"]
[Round "08"]
[TimeControl "180+1"]
[Date "2022.01.18"]
[WhiteClock "0:00:55"]
[BlackClock "0:00:05"]

1. Nf3 {[%clk 0:03:00]}  Nf6 {[%clk 0:02:59]} 2. c4 {[%clk 0:03:00]}  e6 {[%clk 0:02:59]} 3. b3 {[%clk 0:02:59]}  d5 {[%clk 0:03:00]} 4. Bb2 {[%clk 0:02:59]}  c5 {[%clk 0:02:59]} 5. e3 {[%clk 0:02:58]}  Nc6 {[%clk 0:02:58]} 6. cxd5 {[%clk 0:02:55]}  exd5 {[%clk 0:02:59]} 7. Be2 {[%clk 0:02:52]}  d4 {[%clk 0:02:56]} 8. Bb5 {[%clk 0:02:50]}  Bd7 {[%clk 0:02:54]} 9. O-O {[%clk 0:02:50]}  Be7 {[%clk 0:02:48]} 10. exd4 {[%clk 0:02:49]}  Nxd4 {[%clk 0:02:46]} 11. Nxd4 {[%clk 0:02:47]}  cxd4 {[%clk 0:02:45]} 12. Bxd7+ {[%clk 0:02:41]}  Qxd7 {[%clk 0:02:45]} 13. Na3 {[%clk 0:02:42]}  O-O {[%clk 0:02:43]} 14. Nc4 {[%clk 0:02:42]}  b5 {[%clk 0:02:41]} 15. Ne5 {[%clk 0:02:40]}  Qd5 {[%clk 0:02:40]} 16. Re1 {[%clk 0:02:39]}  Rfe8 {[%clk 0:02:31]} 17. Qf3 {[%clk 0:02:38]}  Bd6 {[%clk 0:02:26]} 18. Qxd5 {[%clk 0:02:33]}  Nxd5 {[%clk 0:02:27]} 19. Nd3 {[%clk 0:02:34]}  Nb4 {[%clk 0:02:03]} 20. Rxe8+ {[%clk 0:02:29]}  Rxe8 {[%clk 0:02:02]} 21. Nxb4 {[%clk 0:02:30]}  Bxb4 {[%clk 0:02:03]} 22. Bxd4 {[%clk 0:02:31]}  Bxd2 {[%clk 0:01:46]} 23. Bxa7 {[%clk 0:02:30]}  Bc3 {[%clk 0:01:47]} 24. Rc1 {[%clk 0:02:21]}  Bb2 {[%clk 0:01:04]} 25. Rd1 {[%clk 0:02:16]}  f6 {[%clk 0:00:59]} 26. Kf1 {[%clk 0:02:16]}  Re6 {[%clk 0:00:52]} 27. Rd8+ {[%clk 0:02:02]}  Kf7 {[%clk 0:00:52]} 28. Rd7+ {[%clk 0:02:03]}  Kg6 {[%clk 0:00:45]} 29. Bc5 {[%clk 0:02:03]}  Rc6 {[%clk 0:00:30]} 30. b4 {[%clk 0:01:56]}  Ra6 {[%clk 0:00:28]} 31. Rb7 {[%clk 0:01:48]}  Rxa2 {[%clk 0:00:26]} 32. Rxb5 {[%clk 0:01:48]}  Be5 {[%clk 0:00:21]} 33. g3 {[%clk 0:01:43]}  h5 {[%clk 0:00:20]} 34. Rb7 {[%clk 0:01:33]}  Rb2 {[%clk 0:00:20]} 35. h4 {[%clk 0:01:28]}  f5 {[%clk 0:00:17]} 36. Be3 {[%clk 0:01:21]}  f4 {[%clk 0:00:11]} 37. gxf4 {[%clk 0:01:21]}  Bf6 {[%clk 0:00:11]} 38. b5 {[%clk 0:01:19]}  Bxh4 {[%clk 0:00:10]} 39. b6 {[%clk 0:01:13]}  Bf6 {[%clk 0:00:09]} 40. Rc7 {[%clk 0:01:03]}  Kf5 {[%clk 0:00:08]} 41. b7 {[%clk 0:01:02]}  Kg4 {[%clk 0:00:05]} 42. Ba7 {[%clk 0:00:55]} 1-0


[Site "https://www.chess.com"]

[Event "Titled Tuesday Blitz January 18 2022"]
[White "Yang, Kaiqi"]
[Black "Weetik, Vjacheslav"]
[WhiteFideId "8604398"]
[BlackFideId "4153472"]
[WhiteElo "2373"]
[BlackElo "2469"]
[Result "0-1"]
[Round "08"]
[TimeControl "180+1"]
[Date "2022.01.18"]
[WhiteClock "0:00:03"]
[BlackClock "0:00:16"]

1. c4 {[%clk 0:03:00]}  e5 {[%clk 0:02:58]} 2. Nc3 {[%clk 0:03:00]}  Bb4 {[%clk 0:02:59]} 3. Nd5 {[%clk 0:02:59]}  a5 {[%clk 0:02:59]} 4. Nf3 {[%clk 0:02:58]}  d6 {[%clk 0:02:57]} 5. e3 {[%clk 0:02:55]}  c6 {[%clk 0:02:55]} 6. Nxb4 {[%clk 0:02:54]}  axb4 {[%clk 0:02:56]} 7. d4 {[%clk 0:02:53]}  e4 {[%clk 0:02:57]} 8. Nd2 {[%clk 0:02:53]}  f5 {[%clk 0:02:56]} 9. Qb3 {[%clk 0:02:48]}  c5 {[%clk 0:02:51]} 10. a3 {[%clk 0:02:43]}  Nc6 {[%clk 0:02:51]} 11. d5 {[%clk 0:02:38]}  Ne5 {[%clk 0:02:51]} 12. Ra2 {[%clk 0:02:37]}  bxa3 {[%clk 0:02:43]} 13. Rxa3 {[%clk 0:02:35]}  Rxa3 {[%clk 0:02:34]} 14. bxa3 {[%clk 0:02:36]}  Nf6 {[%clk 0:02:34]} 15. Bb2 {[%clk 0:02:36]}  O-O {[%clk 0:02:27]} 16. Be2 {[%clk 0:02:20]}  Nfg4 {[%clk 0:02:25]} 17. O-O {[%clk 0:02:08]}  Qh4 {[%clk 0:02:24]} 18. h3 {[%clk 0:02:07]}  Nh6 {[%clk 0:02:09]} 19. Bxe5 {[%clk 0:01:51]}  dxe5 {[%clk 0:02:09]} 20. Qb6 {[%clk 0:01:51]}  f4 {[%clk 0:02:02]} 21. exf4 {[%clk 0:01:27]}  Qxf4 {[%clk 0:01:54]} 22. Nb3 {[%clk 0:01:04]}  Nf5 {[%clk 0:01:33]} 23. Nxc5 {[%clk 0:00:40]}  Nd4 {[%clk 0:01:25]} 24. Bd1 {[%clk 0:00:34]}  e3 {[%clk 0:01:23]} 25. Qb2 {[%clk 0:00:19]}  Rf6 {[%clk 0:00:54]} 26. Ne6 {[%clk 0:00:18]}  Bxe6 {[%clk 0:00:51]} 27. dxe6 {[%clk 0:00:19]}  Rxe6 {[%clk 0:00:48]} 28. fxe3 {[%clk 0:00:18]}  Qxe3+ {[%clk 0:00:47]} 29. Qf2 {[%clk 0:00:19]}  Qxf2+ {[%clk 0:00:45]} 30. Rxf2 {[%clk 0:00:19]}  e4 {[%clk 0:00:37]} 31. Rb2 {[%clk 0:00:19]}  b6 {[%clk 0:00:33]} 32. Kf2 {[%clk 0:00:17]}  e3+ {[%clk 0:00:32]} 33. Ke1 {[%clk 0:00:17]}  Kf7 {[%clk 0:00:28]} 34. Bg4 {[%clk 0:00:12]}  Rc6 {[%clk 0:00:23]} 35. Be2 {[%clk 0:00:12]}  Kf6 {[%clk 0:00:23]} 36. Bd3 {[%clk 0:00:12]}  g6 {[%clk 0:00:20]} 37. a4 {[%clk 0:00:12]}  Ke5 {[%clk 0:00:21]} 38. Ra2 {[%clk 0:00:12]}  Rc5 {[%clk 0:00:20]} 39. Rb2 {[%clk 0:00:11]}  Ra5 {[%clk 0:00:19]} 40. Rxb6 {[%clk 0:00:11]}  Rxa4 {[%clk 0:00:19]} 41. c5 {[%clk 0:00:10]}  Ra1+ {[%clk 0:00:18]} 42. Rb1 {[%clk 0:00:10]}  Ra2 {[%clk 0:00:19]} 43. Rc1 {[%clk 0:00:09]}  Rxg2 {[%clk 0:00:14]} 44. c6 {[%clk 0:00:09]}  Rg1+ {[%clk 0:00:15]} 45. Bf1 {[%clk 0:00:09]}  e2 {[%clk 0:00:15]} 46. c7 {[%clk 0:00:04]}  Rxf1+ {[%clk 0:00:15]} 47. Kd2 {[%clk 0:00:04]}  Rxc1 {[%clk 0:00:16]} 48. Kxc1 {[%clk 0:00:03]}  e1=Q+ {[%clk 0:00:16]} 0-1


[Site "https://www.chess.com"]

[Event "Titled Tuesday Blitz January 18 2022"]
[White "Yurovskykh, Oleksandr"]
[Black "Logozar, Elijah"]
[WhiteFideId "14134020"]
[BlackFideId "30963788"]
[WhiteElo "2292"]
[BlackElo "2420"]
[Result "1-0"]
[Round "08"]
[TimeControl "180+1"]
[Date "2022.01.18"]
[WhiteClock "0:00:35"]
[BlackClock "0:01:36"]

1. d4 {[%clk 0:02:58]}  d5 {[%clk 0:02:57]} 2. Bf4 {[%clk 0:02:57]}  c5 {[%clk 0:02:57]} 3. e3 {[%clk 0:02:57]}  Nc6 {[%clk 0:02:58]} 4. c3 {[%clk 0:02:57]}  Nf6 {[%clk 0:02:57]} 5. Nd2 {[%clk 0:02:57]}  Bf5 {[%clk 0:02:56]} 6. Ngf3 {[%clk 0:02:57]}  Qb6 {[%clk 0:02:55]} 7. Nh4 {[%clk 0:02:55]}  Bd7 {[%clk 0:02:55]} 8. Qb3 {[%clk 0:02:55]}  c4 {[%clk 0:02:55]} 9. Qc2 {[%clk 0:02:55]}  Nh5 {[%clk 0:02:49]} 10. Bg3 {[%clk 0:02:48]}  Nxg3 {[%clk 0:02:49]} 11. hxg3 {[%clk 0:02:49]}  g5 {[%clk 0:02:49]} 12. Nhf3 {[%clk 0:02:45]}  g4 {[%clk 0:02:49]} 13. Nh4 {[%clk 0:02:42]}  O-O-O {[%clk 0:02:49]} 14. e4 {[%clk 0:02:38]}  dxe4 {[%clk 0:02:41]} 15. Bxc4 {[%clk 0:02:31]}  f5 {[%clk 0:02:35]} 16. b4 {[%clk 0:02:17]}  Bh6 {[%clk 0:02:33]} 17. a4 {[%clk 0:02:13]}  e3 {[%clk 0:02:31]} 18. fxe3 {[%clk 0:01:45]}  Bxe3 {[%clk 0:02:26]} 19. Nxf5 {[%clk 0:01:21]}  Bxd2+ {[%clk 0:02:20]} 20. Kxd2 {[%clk 0:01:21]}  Kb8 {[%clk 0:02:21]} 21. Ne3 {[%clk 0:01:11]}  Nxd4 {[%clk 0:02:04]} 22. cxd4 {[%clk 0:01:06]}  Qxd4+ {[%clk 0:02:03]} 23. Ke2 {[%clk 0:01:05]}  Rhf8 {[%clk 0:01:56]} 24. Rad1 {[%clk 0:01:02]}  Qe5 {[%clk 0:01:56]} 25. Rhf1 {[%clk 0:00:48]}  Qxg3 {[%clk 0:01:54]} 26. Rxd7 {[%clk 0:00:42]}  Rc8 {[%clk 0:01:41]} 27. Qe4 {[%clk 0:00:35]}  Rxf1 {[%clk 0:01:36]} 28. Qxb7# {[%clk 0:00:35]} 1-0


[Site "https://www.chess.com"]

[Event "Titled Tuesday Blitz January 18 2022"]
[White "Zhigalko, Sergei"]
[Black "Zhuravlev, Alexey"]
[WhiteFideId "13502956"]
[BlackFideId "4164199"]
[WhiteElo "2662"]
[BlackElo "2546"]
[Result "1-0"]
[Round "08"]
[TimeControl "180+1"]
[Date "2022.01.18"]
[WhiteClock "0:00:36"]
[BlackClock "0:00:14"]

1. e4 {[%clk 0:03:00]}  c6 {[%clk 0:02:04]} 2. d4 {[%clk 0:02:56]}  d5 {[%clk 0:02:05]} 3. e5 {[%clk 0:02:56]}  Bf5 {[%clk 0:02:04]} 4. Nf3 {[%clk 0:02:55]}  e6 {[%clk 0:02:03]} 5. Be2 {[%clk 0:02:54]}  Nd7 {[%clk 0:02:04]} 6. O-O {[%clk 0:02:54]}  h6 {[%clk 0:02:03]} 7. Nbd2 {[%clk 0:02:55]}  Ne7 {[%clk 0:02:03]} 8. a4 {[%clk 0:02:53]}  g5 {[%clk 0:02:03]} 9. a5 {[%clk 0:02:50]}  Bg7 {[%clk 0:02:02]} 10. Nb3 {[%clk 0:02:48]}  O-O {[%clk 0:02:01]} 11. Bd2 {[%clk 0:02:47]}  f6 {[%clk 0:01:59]} 12. exf6 {[%clk 0:02:41]}  Bxf6 {[%clk 0:02:00]} 13. Bb4 {[%clk 0:02:39]}  Rf7 {[%clk 0:01:57]} 14. Re1 {[%clk 0:02:22]}  Ng6 {[%clk 0:01:55]} 15. Bd3 {[%clk 0:02:04]}  Bxd3 {[%clk 0:01:28]} 16. cxd3 {[%clk 0:01:55]}  g4 {[%clk 0:01:23]} 17. Nfd2 {[%clk 0:01:48]}  e5 {[%clk 0:01:18]} 18. Qxg4 {[%clk 0:01:46]}  Rg7 {[%clk 0:01:14]} 19. Qe6+ {[%clk 0:01:24]}  Kh8 {[%clk 0:01:14]} 20. g3 {[%clk 0:01:16]}  exd4 {[%clk 0:01:11]} 21. Nf3 {[%clk 0:01:13]}  Nf4 {[%clk 0:00:18]} 22. Qf5 {[%clk 0:01:09]}  Qc7 {[%clk 0:00:19]} 23. Nc5 {[%clk 0:00:35]}  Nxc5 {[%clk 0:00:14]} 24. Bxc5 {[%clk 0:00:36]} 1-0


[Site "https://www.chess.com"]

[Event "Titled Tuesday Blitz January 18 2022"]
[White "Bacrot, Etienne"]
[Black "Xiong, Jeffery"]
[WhiteFideId "605506"]
[BlackFideId "2047640"]
[WhiteElo "2673"]
[BlackElo "2727"]
[Result "1/2-1/2"]
[Round "09"]
[TimeControl "180+1"]
[Date "2022.01.18"]
[WhiteClock "0:00:11"]
[BlackClock "0:00:09"]

1. d4 {[%clk 0:03:00]}  d5 {[%clk 0:02:57]} 2. Nf3 {[%clk 0:03:00]}  Nf6 {[%clk 0:02:57]} 3. c4 {[%clk 0:03:00]}  c6 {[%clk 0:02:58]} 4. e3 {[%clk 0:03:00]}  Bf5 {[%clk 0:02:53]} 5. Nc3 {[%clk 0:03:00]}  e6 {[%clk 0:02:50]} 6. Nh4 {[%clk 0:03:00]}  Be4 {[%clk 0:02:51]} 7. f3 {[%clk 0:03:00]}  Bg6 {[%clk 0:02:50]} 8. Nxg6 {[%clk 0:03:00]}  hxg6 {[%clk 0:02:51]} 9. Bd2 {[%clk 0:03:01]}  Nbd7 {[%clk 0:02:47]} 10. Qb3 {[%clk 0:03:00]}  Qc7 {[%clk 0:02:46]} 11. O-O-O {[%clk 0:02:59]}  dxc4 {[%clk 0:02:39]} 12. Bxc4 {[%clk 0:02:59]}  a6 {[%clk 0:02:39]} 13. Be2 {[%clk 0:02:48]}  b5 {[%clk 0:02:33]} 14. h4 {[%clk 0:02:44]}  c5 {[%clk 0:02:32]} 15. Kb1 {[%clk 0:02:42]}  Be7 {[%clk 0:02:23]} 16. g4 {[%clk 0:02:23]}  c4 {[%clk 0:02:14]} 17. Qc2 {[%clk 0:02:23]}  Nb6 {[%clk 0:02:14]} 18. e4 {[%clk 0:02:19]}  Nfd7 {[%clk 0:02:07]} 19. h5 {[%clk 0:02:13]}  gxh5 {[%clk 0:02:06]} 20. gxh5 {[%clk 0:02:13]}  b4 {[%clk 0:02:03]} 21. Na4 {[%clk 0:02:13]}  c3 {[%clk 0:02:04]} 22. bxc3 {[%clk 0:01:57]}  Nxa4 {[%clk 0:02:01]} 23. Qxa4 {[%clk 0:01:47]}  bxc3 {[%clk 0:02:01]} 24. Bc1 {[%clk 0:01:31]}  Rb8+ {[%clk 0:01:41]} 25. Kc2 {[%clk 0:01:24]}  O-O {[%clk 0:01:42]} 26. Rdg1 {[%clk 0:01:08]}  Rfc8 {[%clk 0:01:21]} 27. h6 {[%clk 0:01:01]}  g6 {[%clk 0:01:21]} 28. Bd3 {[%clk 0:00:49]}  Kh7 {[%clk 0:00:51]} 29. f4 {[%clk 0:00:47]}  Rb4 {[%clk 0:00:44]} 30. Qxa6 {[%clk 0:00:43]}  Rxd4 {[%clk 0:00:45]} 31. f5 {[%clk 0:00:42]}  Nc5 {[%clk 0:00:45]} 32. fxg6+ {[%clk 0:00:40]}  fxg6 {[%clk 0:00:46]} 33. Qb5 {[%clk 0:00:25]}  Nxd3 {[%clk 0:00:45]} 34. Rxg6 {[%clk 0:00:25]}  Nb4+ {[%clk 0:00:27]} 35. Kb3 {[%clk 0:00:25]}  c2 {[%clk 0:00:18]} 36. Bb2 {[%clk 0:00:16]}  Rd3+ {[%clk 0:00:10]} 37. Qxd3 {[%clk 0:00:16]}  Nxd3 {[%clk 0:00:10]} 38. Rg7+ {[%clk 0:00:16]}  Kh8 {[%clk 0:00:11]} 39. Rxe7+ {[%clk 0:00:15]}  e5 {[%clk 0:00:07]} 40. Rxc7 {[%clk 0:00:15]}  Rxc7 {[%clk 0:00:08]} 41. Bc1 {[%clk 0:00:11]}  Kh7 {[%clk 0:00:08]} 42. a4 {[%clk 0:00:10]}  Nc5+ {[%clk 0:00:09]} 43. Kxc2 {[%clk 0:00:10]}  Nxa4+ {[%clk 0:00:09]} 44. Kd3 {[%clk 0:00:10]}  Nc5+ {[%clk 0:00:09]} 45. Ke3 {[%clk 0:00:11]}  Rb7 {[%clk 0:00:08]} 46. Kf3 {[%clk 0:00:10]}  Rb3+ {[%clk 0:00:08]} 47. Be3 {[%clk 0:00:10]}  Ne6 {[%clk 0:00:08]} 48. Rg1 {[%clk 0:00:10]}  Nd4+ {[%clk 0:00:07]} 49. Kf2 {[%clk 0:00:10]}  Rb2+ {[%clk 0:00:08]} 50. Kf1 {[%clk 0:00:10]}  Rb1+ {[%clk 0:00:08]} 51. Kf2 {[%clk 0:00:10]}  Rb2+ {[%clk 0:00:08]} 52. Kf1 {[%clk 0:00:10]}  Rb1+ {[%clk 0:00:08]} 53. Kf2 {[%clk 0:00:11]}  Rb2+ {[%clk 0:00:09]} 1/2-1/2


[Site "https://www.chess.com"]

[Event "Titled Tuesday Blitz January 18 2022"]
[White "Balabayeva, Xeniya"]
[Black "Agasarov, Benik"]
[WhiteFideId "13719688"]
[BlackFideId "13314823"]
[WhiteElo "1940"]
[BlackElo "2563"]
[Result "0-1"]
[Round "09"]
[TimeControl "180+1"]
[Date "2022.01.18"]
[WhiteClock "0:00:02"]
[BlackClock "0:00:05"]

1. e4 {[%clk 0:03:00]}  e5 {[%clk 0:02:57]} 2. Nf3 {[%clk 0:02:59]}  Nc6 {[%clk 0:02:56]} 3. Bb5 {[%clk 0:02:59]}  a6 {[%clk 0:02:54]} 4. Ba4 {[%clk 0:02:57]}  d6 {[%clk 0:02:51]} 5. O-O {[%clk 0:02:55]}  Bd7 {[%clk 0:02:48]} 6. c3 {[%clk 0:02:25]}  g6 {[%clk 0:02:37]} 7. d4 {[%clk 0:02:22]}  Bg7 {[%clk 0:02:37]} 8. h3 {[%clk 0:02:20]}  Nge7 {[%clk 0:02:36]} 9. dxe5 {[%clk 0:02:16]}  Nxe5 {[%clk 0:02:34]} 10. Nxe5 {[%clk 0:02:13]}  dxe5 {[%clk 0:02:29]} 11. Be3 {[%clk 0:02:13]}  Bc6 {[%clk 0:02:13]} 12. Bxc6+ {[%clk 0:02:00]}  Nxc6 {[%clk 0:02:12]} 13. Qb3 {[%clk 0:01:54]}  Qc8 {[%clk 0:01:47]} 14. Rd1 {[%clk 0:01:33]}  O-O {[%clk 0:01:46]} 15. Nd2 {[%clk 0:01:31]}  b5 {[%clk 0:01:37]} 16. Nf3 {[%clk 0:01:27]}  Na5 {[%clk 0:01:37]} 17. Qb4 {[%clk 0:01:15]}  Nc4 {[%clk 0:01:35]} 18. Bc5 {[%clk 0:01:12]}  Re8 {[%clk 0:01:33]} 19. b3 {[%clk 0:01:08]}  Nb6 {[%clk 0:01:29]} 20. Rd2 {[%clk 0:00:56]}  Qb7 {[%clk 0:01:20]} 21. Rad1 {[%clk 0:00:53]}  Bf8 {[%clk 0:01:04]} 22. Bxf8 {[%clk 0:00:50]}  Rxf8 {[%clk 0:01:03]} 23. Nxe5 {[%clk 0:00:37]}  Rfe8 {[%clk 0:01:03]} 24. Ng4 {[%clk 0:00:36]}  Qc6 {[%clk 0:00:50]} 25. Qd4 {[%clk 0:00:33]}  Rad8 {[%clk 0:00:21]} 26. Nf6+ {[%clk 0:00:18]}  Kh8 {[%clk 0:00:14]} 27. Nxe8+ {[%clk 0:00:15]}  Rxd4 {[%clk 0:00:13]} 28. Rxd4 {[%clk 0:00:15]}  h5 {[%clk 0:00:09]} 29. e5 {[%clk 0:00:14]}  Kh7 {[%clk 0:00:08]} 30. Nf6+ {[%clk 0:00:14]}  Kh6 {[%clk 0:00:08]} 31. h4 {[%clk 0:00:13]}  Qxc3 {[%clk 0:00:07]} 32. f4 {[%clk 0:00:11]}  Qe3+ {[%clk 0:00:05]} 33. Kf1 {[%clk 0:00:09]}  c5 {[%clk 0:00:05]} 34. Rd8 {[%clk 0:00:09]}  Qxf4+ {[%clk 0:00:05]} 35. Kg1 {[%clk 0:00:08]}  Qe3+ {[%clk 0:00:04]} 36. Kh1 {[%clk 0:00:08]}  Qxe5 {[%clk 0:00:05]} 37. Ng8+ {[%clk 0:00:02]}  Kg7 {[%clk 0:00:05]} 0-1


[Site "https://www.chess.com"]

[Event "Titled Tuesday Blitz January 18 2022"]
[White "Chigaev, Maksim"]
[Black "Plotkin, Mark"]
[WhiteFideId "4108116"]
[BlackFideId "2611651"]
[WhiteElo "2502"]
[BlackElo "2178"]
[Result "1/2-1/2"]
[Round "09"]
[TimeControl "180+1"]
[Date "2022.01.18"]
[WhiteClock "0:00:07"]
[BlackClock "0:00:20"]

1. Nf3 {[%clk 0:03:00]}  Nf6 {[%clk 0:02:59]} 2. c4 {[%clk 0:02:59]}  c6 {[%clk 0:03:00]} 3. g3 {[%clk 0:02:58]}  d5 {[%clk 0:03:01]} 4. b3 {[%clk 0:02:57]}  Bf5 {[%clk 0:03:01]} 5. Bb2 {[%clk 0:02:56]}  Nbd7 {[%clk 0:03:02]} 6. Bg2 {[%clk 0:02:56]}  h6 {[%clk 0:03:02]} 7. O-O {[%clk 0:02:57]}  e6 {[%clk 0:03:02]} 8. d3 {[%clk 0:02:57]}  Be7 {[%clk 0:03:01]} 9. Nbd2 {[%clk 0:02:57]}  O-O {[%clk 0:03:00]} 10. Rc1 {[%clk 0:02:57]}  Bh7 {[%clk 0:02:59]} 11. Rc2 {[%clk 0:02:57]}  a5 {[%clk 0:02:58]} 12. a3 {[%clk 0:02:57]}  b5 {[%clk 0:02:57]} 13. cxb5 {[%clk 0:02:53]}  cxb5 {[%clk 0:02:57]} 14. Nd4 {[%clk 0:02:53]}  Qb6 {[%clk 0:02:54]} 15. Qa1 {[%clk 0:02:51]}  Rac8 {[%clk 0:02:52]} 16. Rfc1 {[%clk 0:02:45]}  Rxc2 {[%clk 0:02:51]} 17. Rxc2 {[%clk 0:02:41]}  Bc5 {[%clk 0:02:50]} 18. b4 {[%clk 0:02:13]}  axb4 {[%clk 0:02:46]} 19. axb4 {[%clk 0:02:13]}  Bxb4 {[%clk 0:02:46]} 20. N2b3 {[%clk 0:02:14]}  e5 {[%clk 0:02:33]} 21. Nc6 {[%clk 0:02:06]}  Bd6 {[%clk 0:02:26]} 22. Nxe5 {[%clk 0:02:01]}  Nxe5 {[%clk 0:02:26]} 23. Bxe5 {[%clk 0:02:01]}  Bxe5 {[%clk 0:02:26]} 24. Qxe5 {[%clk 0:02:02]}  Qxf2+ {[%clk 0:02:27]} 25. Kxf2 {[%clk 0:02:02]}  Ng4+ {[%clk 0:02:27]} 26. Kg1 {[%clk 0:01:52]}  Nxe5 {[%clk 0:02:27]} 27. Bxd5 {[%clk 0:01:52]}  Bg6 {[%clk 0:02:14]} 28. Rc5 {[%clk 0:01:47]}  b4 {[%clk 0:02:12]} 29. Rb5 {[%clk 0:01:42]}  Rd8 {[%clk 0:02:06]} 30. h3 {[%clk 0:01:32]}  Kh7 {[%clk 0:01:41]} 31. Bg2 {[%clk 0:01:30]}  Nxd3 {[%clk 0:01:35]} 32. exd3 {[%clk 0:01:28]}  Rxd3 {[%clk 0:01:36]} 33. Rxb4 {[%clk 0:01:27]}  Rxg3 {[%clk 0:01:37]} 34. Kf2 {[%clk 0:01:24]}  Rc3 {[%clk 0:01:34]} 35. Nd4 {[%clk 0:01:24]}  Ra3 {[%clk 0:01:32]} 36. h4 {[%clk 0:01:18]}  Ra2+ {[%clk 0:01:32]} 37. Kg3 {[%clk 0:01:18]}  Ra3+ {[%clk 0:01:32]} 38. Kf4 {[%clk 0:01:18]}  Ra2 {[%clk 0:01:28]} 39. Bf3 {[%clk 0:01:18]}  Ra5 {[%clk 0:01:24]} 40. Nc6 {[%clk 0:01:05]}  Rc5 {[%clk 0:01:21]} 41. Ne5 {[%clk 0:01:01]}  Bc2 {[%clk 0:01:09]} 42. h5 {[%clk 0:00:59]}  g5+ {[%clk 0:01:08]} 43. hxg6+ {[%clk 0:00:58]}  Bxg6 {[%clk 0:01:06]} 44. Rb7 {[%clk 0:00:52]}  Kg7 {[%clk 0:01:03]} 45. Bg4 {[%clk 0:00:49]}  Rc1 {[%clk 0:01:01]} 46. Nxg6 {[%clk 0:00:41]}  Rf1+ {[%clk 0:00:56]} 47. Bf3 {[%clk 0:00:38]}  Kxg6 {[%clk 0:00:56]} 48. Rb6+ {[%clk 0:00:38]}  Kg7 {[%clk 0:00:56]} 49. Kg4 {[%clk 0:00:37]}  Rg1+ {[%clk 0:00:56]} 50. Kh4 {[%clk 0:00:36]}  Rg5 {[%clk 0:00:56]} 51. Bh5 {[%clk 0:00:34]}  Rf5 {[%clk 0:00:53]} 52. Rc6 {[%clk 0:00:33]}  Rf4+ {[%clk 0:00:52]} 53. Kg3 {[%clk 0:00:33]}  Rf5 {[%clk 0:00:51]} 54. Bg4 {[%clk 0:00:33]}  Rg5 {[%clk 0:00:51]} 55. Kf4 {[%clk 0:00:33]}  Rg6 {[%clk 0:00:52]} 56. Rc7 {[%clk 0:00:34]}  Rf6+ {[%clk 0:00:51]} 57. Kg3 {[%clk 0:00:31]}  Rg6 {[%clk 0:00:51]} 58. Kf3 {[%clk 0:00:28]}  Rf6+ {[%clk 0:00:51]} 59. Ke4 {[%clk 0:00:28]}  Rg6 {[%clk 0:00:51]} 60. Bf5 {[%clk 0:00:28]}  Ra6 {[%clk 0:00:51]} 61. Kf4 {[%clk 0:00:28]}  Ra4+ {[%clk 0:00:51]} 62. Be4 {[%clk 0:00:29]}  Ra5 {[%clk 0:00:51]} 63. Rd7 {[%clk 0:00:28]}  Ra6 {[%clk 0:00:50]} 64. Bd5 {[%clk 0:00:26]}  Rf6+ {[%clk 0:00:50]} 65. Ke5 {[%clk 0:00:26]}  Rf1 {[%clk 0:00:50]} 66. Ra7 {[%clk 0:00:24]}  Re1+ {[%clk 0:00:50]} 67. Be4 {[%clk 0:00:24]}  Rg1 {[%clk 0:00:50]} 68. Ra2 {[%clk 0:00:22]}  Rg5+ {[%clk 0:00:50]} 69. Bf5 {[%clk 0:00:22]}  Rg1 {[%clk 0:00:50]} 70. Re2 {[%clk 0:00:22]}  Rg5 {[%clk 0:00:49]} 71. Re1 {[%clk 0:00:21]}  Rg3 {[%clk 0:00:47]} 72. Kf4 {[%clk 0:00:20]}  Rg5 {[%clk 0:00:47]} 73. Rh1 {[%clk 0:00:18]}  Rg2 {[%clk 0:00:46]} 74. Bg4 {[%clk 0:00:16]}  Rf2+ {[%clk 0:00:46]} 75. Bf3 {[%clk 0:00:17]}  Ra2 {[%clk 0:00:43]} 76. Rg1+ {[%clk 0:00:17]}  Kf6 {[%clk 0:00:43]} 77. Rg8 {[%clk 0:00:18]}  Ra4+ {[%clk 0:00:42]} 78. Be4 {[%clk 0:00:18]}  Ra1 {[%clk 0:00:42]} 79. Rh8 {[%clk 0:00:19]}  Rf1+ {[%clk 0:00:41]} 80. Ke3 {[%clk 0:00:17]}  Re1+ {[%clk 0:00:41]} 81. Kf3 {[%clk 0:00:17]}  Kg5 {[%clk 0:00:38]} 82. Rg8+ {[%clk 0:00:16]}  Kf6 {[%clk 0:00:39]} 83. Kf4 {[%clk 0:00:16]}  Rf1+ {[%clk 0:00:38]} 84. Bf3 {[%clk 0:00:17]}  Ra1 {[%clk 0:00:36]} 85. Rg3 {[%clk 0:00:11]}  Ra4+ {[%clk 0:00:35]} 86. Be4 {[%clk 0:00:11]}  Ra1 {[%clk 0:00:30]} 87. Rf3 {[%clk 0:00:11]}  Kg7 {[%clk 0:00:29]} 88. Ke5 {[%clk 0:00:10]}  Ra5+ {[%clk 0:00:29]} 89. Bd5 {[%clk 0:00:10]}  Ra7 {[%clk 0:00:29]} 90. Rg3+ {[%clk 0:00:10]}  Kf8 {[%clk 0:00:26]} 91. Rg1 {[%clk 0:00:07]}  Re7+ {[%clk 0:00:25]} 92. Kf6 {[%clk 0:00:08]}  Rd7 {[%clk 0:00:26]} 93. Be4 {[%clk 0:00:05]}  Rd6+ {[%clk 0:00:25]} 94. Ke5 {[%clk 0:00:06]}  Re6+ {[%clk 0:00:26]} 95. Kf4 {[%clk 0:00:06]}  Rf6+ {[%clk 0:00:24]} 96. Bf5 {[%clk 0:00:07]}  Ra6 {[%clk 0:00:23]} 97. Bh7 {[%clk 0:00:07]}  Ke7 {[%clk 0:00:20]} 1/2-1/2


[Site "https://www.chess.com"]

[Event "Titled Tuesday Blitz January 18 2022"]
[White "Chizhikov, Vladislav"]
[Black "Pires, Marcos Vinicius Torsani"]
[WhiteFideId "4178157"]
[BlackFideId "2118939"]
[WhiteElo "2120"]
[BlackElo "2273"]
[Result "1-0"]
[Round "09"]
[TimeControl "180+1"]
[Date "2022.01.18"]
[WhiteClock "0:01:44"]
[BlackClock "0:00:07"]

1. e4 {[%clk 0:03:00]}  c6 {[%clk 0:02:58]} 2. d4 {[%clk 0:03:00]}  d5 {[%clk 0:02:57]} 3. Nc3 {[%clk 0:03:01]}  dxe4 {[%clk 0:02:57]} 4. Nxe4 {[%clk 0:03:02]}  Bf5 {[%clk 0:02:57]} 5. Ng3 {[%clk 0:03:02]}  Bg6 {[%clk 0:02:57]} 6. h4 {[%clk 0:03:02]}  h6 {[%clk 0:02:57]} 7. Nh3 {[%clk 0:03:02]}  e6 {[%clk 0:02:55]} 8. Nf4 {[%clk 0:03:02]}  Bh7 {[%clk 0:02:56]} 9. Bd3 {[%clk 0:03:03]}  Bxd3 {[%clk 0:02:49]} 10. Qxd3 {[%clk 0:03:03]}  Nf6 {[%clk 0:02:47]} 11. Bd2 {[%clk 0:03:04]}  Nbd7 {[%clk 0:02:46]} 12. Ng6 {[%clk 0:03:02]}  fxg6 {[%clk 0:02:37]} 13. Qxg6+ {[%clk 0:03:03]}  Ke7 {[%clk 0:02:34]} 14. Bb4+ {[%clk 0:03:04]}  c5 {[%clk 0:02:35]} 15. dxc5 {[%clk 0:03:04]}  Qe8 {[%clk 0:02:15]} 16. c6+ {[%clk 0:03:01]}  Kd8 {[%clk 0:02:14]} 17. Qxe8+ {[%clk 0:02:59]}  Kxe8 {[%clk 0:02:10]} 18. cxd7+ {[%clk 0:02:57]}  Nxd7 {[%clk 0:02:07]} 19. Bxf8 {[%clk 0:02:54]}  Rxf8 {[%clk 0:02:07]} 20. Ne4 {[%clk 0:02:48]}  Ke7 {[%clk 0:02:05]} 21. O-O-O {[%clk 0:02:47]}  Rad8 {[%clk 0:01:58]} 22. Rhe1 {[%clk 0:02:43]}  Rf4 {[%clk 0:01:49]} 23. g3 {[%clk 0:02:35]}  Rf3 {[%clk 0:01:35]} 24. Re2 {[%clk 0:02:34]}  Nf6 {[%clk 0:01:28]} 25. Rxd8 {[%clk 0:02:24]}  Kxd8 {[%clk 0:01:29]} 26. Nc5 {[%clk 0:02:24]}  Ng4 {[%clk 0:00:53]} 27. Nxe6+ {[%clk 0:02:22]}  Kd7 {[%clk 0:00:48]} 28. Nc5+ {[%clk 0:02:17]}  Kc6 {[%clk 0:00:37]} 29. Nd3 {[%clk 0:02:16]}  Kd6 {[%clk 0:00:33]} 30. Kd2 {[%clk 0:02:15]}  Rf7 {[%clk 0:00:33]} 31. Ke1 {[%clk 0:02:13]}  Nh2 {[%clk 0:00:28]} 32. Nf4 {[%clk 0:02:07]}  Nf3+ {[%clk 0:00:25]} 33. Kf1 {[%clk 0:02:07]}  Rf6 {[%clk 0:00:20]} 34. h5 {[%clk 0:02:04]}  Nd4 {[%clk 0:00:16]} 35. Rd2 {[%clk 0:02:03]}  Kc5 {[%clk 0:00:17]} 36. c3 {[%clk 0:01:58]}  Nc6 {[%clk 0:00:10]} 37. Rd7 {[%clk 0:01:57]}  Rd6 {[%clk 0:00:07]} 38. b4+ {[%clk 0:01:44]} 1-0


[Site "https://www.chess.com"]